[Event "November 21 Late 2023"]
[Site "https://www.chess.com"]
[Date "2023.11.21"]
[Round "6"]
[White "Kovalevsky, Stanislav"]
[Black "TheKnightOfBosnia"]
[Result "0-1"]
[Board "54"]
[TimeControl "180+1"]
[WhiteFideId "13508598"]
[WhiteElo "2092"]
[BlackElo "2613"]
[WhiteTeam "FID"]
[WhiteClock "0:00:00"]
[BlackClock "0:00:12"]

1. e4 {[%clk 0:03:00]}  e5 {[%clk 0:02:59]} 2. Nf3 {[%clk 0:03:00]}  Nc6 {[%clk 0:02:59]} 3. Bb5 {[%clk 0:03:00]}  a6 {[%clk 0:02:59]} 4. Ba4 {[%clk 0:03:01]}  Nf6 {[%clk 0:02:59]} 5. O-O {[%clk 0:03:01]}  b5 {[%clk 0:03:00]} 6. Bb3 {[%clk 0:03:01]}  Bb7 {[%clk 0:03:01]} 7. Re1 {[%clk 0:02:59]}  Bc5 {[%clk 0:02:59]} 8. c3 {[%clk 0:02:45]}  d6 {[%clk 0:02:55]} 9. d4 {[%clk 0:02:45]}  Bb6 {[%clk 0:02:56]} 10. Bg5 {[%clk 0:02:40]}  h6 {[%clk 0:02:53]} 11. Bh4 {[%clk 0:02:39]}  O-O {[%clk 0:02:52]} 12. a4 {[%clk 0:02:06]}  g5 {[%clk 0:02:52]} 13. Nxg5 {[%clk 0:02:03]}  hxg5 {[%clk 0:02:52]} 14. Bxg5 {[%clk 0:02:03]}  exd4 {[%clk 0:02:35]} 15. Qf3 {[%clk 0:02:03]}  Kg7 {[%clk 0:02:30]} 16. Qg3 {[%clk 0:01:50]}  Rh8 {[%clk 0:02:27]} 17. Bxf6+ {[%clk 0:01:41]}  Kxf6 {[%clk 0:02:13]} 18. Qf4+ {[%clk 0:01:41]}  Kg7 {[%clk 0:02:13]} 19. Qxf7+ {[%clk 0:01:40]}  Kh6 {[%clk 0:02:13]} 20. axb5 {[%clk 0:01:18]}  axb5 {[%clk 0:01:51]} 21. Rxa8 {[%clk 0:01:17]}  Bxa8 {[%clk 0:01:51]} 22. Na3 {[%clk 0:01:11]}  Qe7 {[%clk 0:01:36]} 23. Qf4+ {[%clk 0:01:02]}  Qg5 {[%clk 0:01:35]} 24. Qxg5+ {[%clk 0:00:56]}  Kxg5 {[%clk 0:01:35]} 25. Nxb5 {[%clk 0:00:50]}  dxc3 {[%clk 0:01:33]} 26. bxc3 {[%clk 0:00:49]}  Rf8 {[%clk 0:01:18]} 27. Re2 {[%clk 0:00:36]}  Ne5 {[%clk 0:01:12]} 28. Nd4 {[%clk 0:00:29]}  Kg6 {[%clk 0:00:57]} 29. Re3 {[%clk 0:00:16]}  c5 {[%clk 0:00:39]} 30. Nf5 {[%clk 0:00:10]}  c4 {[%clk 0:00:20]} 31. Rg3+ {[%clk 0:00:09]}  Kf6 {[%clk 0:00:20]} 32. Bc2 {[%clk 0:00:06]}  d5 {[%clk 0:00:19]} 33. exd5 {[%clk 0:00:05]}  Bxd5 {[%clk 0:00:18]} 34. Ne3 {[%clk 0:00:04]}  Be6 {[%clk 0:00:17]} 35. h3 {[%clk 0:00:04]}  Rd8 {[%clk 0:00:16]} 36. Kh2 {[%clk 0:00:03]}  Rd2 {[%clk 0:00:16]} 37. Be4 {[%clk 0:00:03]}  Rxf2 {[%clk 0:00:14]} 38. Bd5 {[%clk 0:00:02]}  Bxe3 {[%clk 0:00:13]} 39. Bxe6 {[%clk 0:00:02]}  Bf4 {[%clk 0:00:14]} 40. Bd5 {[%clk 0:00:01]}  Bxg3+ {[%clk 0:00:14]} 41. Kxg3 {[%clk 0:00:02]}  Rd2 {[%clk 0:00:14]} 42. Be4 {[%clk 0:00:02]}  Nd3 {[%clk 0:00:13]} 43. Kf3 {[%clk 0:00:02]}  Rc2 {[%clk 0:00:13]} 44. Ke3 {[%clk 0:00:01]}  Rxc3 {[%clk 0:00:13]} 45. Kd4 {[%clk 0:00:02]}  Rc2 {[%clk 0:00:13]} 46. g4 {[%clk 0:00:00]}  Kg5 {[%clk 0:00:12]} 0-1

[Event "November 21 Late 2023"]
[Site "https://www.chess.com"]
[Date "2023.11.21"]
[Round "6"]
[White "topce"]
[Black "Gimenez Aguirre, Alejo Ismael"]
[Result "0-1"]
[Board "55"]
[TimeControl "180+1"]
[BlackFideId "32041667"]
[WhiteElo "2460"]
[BlackElo "2165"]
[BlackTeam "ARG"]
[WhiteClock "0:00:04"]
[BlackClock "0:00:29"]

1. c4 {[%clk 0:03:00]}  e5 {[%clk 0:02:55]} 2. Nc3 {[%clk 0:02:59]}  Nc6 {[%clk 0:02:56]} 3. Nf3 {[%clk 0:02:59]}  a6 {[%clk 0:02:56]} 4. e3 {[%clk 0:02:58]}  Nf6 {[%clk 0:02:55]} 5. d4 {[%clk 0:02:56]}  exd4 {[%clk 0:02:56]} 6. exd4 {[%clk 0:02:57]}  d5 {[%clk 0:02:57]} 7. c5 {[%clk 0:02:54]}  Be7 {[%clk 0:02:56]} 8. h3 {[%clk 0:02:53]}  O-O {[%clk 0:02:56]} 9. Bd3 {[%clk 0:02:54]}  b6 {[%clk 0:02:55]} 10. cxb6 {[%clk 0:02:52]}  cxb6 {[%clk 0:02:55]} 11. O-O {[%clk 0:02:52]}  b5 {[%clk 0:02:54]} 12. Bf4 {[%clk 0:02:48]}  h6 {[%clk 0:02:49]} 13. Qd2 {[%clk 0:02:40]}  Re8 {[%clk 0:02:41]} 14. Rae1 {[%clk 0:02:23]}  Bf8 {[%clk 0:02:41]} 15. Rxe8 {[%clk 0:02:19]}  Qxe8 {[%clk 0:02:42]} 16. Re1 {[%clk 0:02:18]}  Be6 {[%clk 0:02:42]} 17. a4 {[%clk 0:02:11]}  b4 {[%clk 0:02:35]} 18. Ne2 {[%clk 0:02:05]}  Na5 {[%clk 0:02:34]} 19. Be5 {[%clk 0:01:53]}  Nd7 {[%clk 0:02:29]} 20. Nf4 {[%clk 0:01:48]}  Nxe5 {[%clk 0:02:29]} 21. Nxe5 {[%clk 0:01:39]}  Bd6 {[%clk 0:02:14]} 22. Nh5 {[%clk 0:01:25]}  Qe7 {[%clk 0:01:35]} 23. f4 {[%clk 0:01:09]}  f6 {[%clk 0:01:18]} 24. Ng6 {[%clk 0:01:03]}  Qf7 {[%clk 0:01:18]} 25. f5 {[%clk 0:01:00]}  Bd7 {[%clk 0:01:17]} 26. Nhf4 {[%clk 0:00:56]}  Nc4 {[%clk 0:01:08]} 27. Qf2 {[%clk 0:00:53]}  Bxa4 {[%clk 0:00:58]} 28. Re6 {[%clk 0:00:52]}  Rd8 {[%clk 0:00:52]} 29. Nh5 {[%clk 0:00:43]}  Bd7 {[%clk 0:00:48]} 30. Nhf4 {[%clk 0:00:40]}  Bxe6 {[%clk 0:00:46]} 31. fxe6 {[%clk 0:00:39]}  Qb7 {[%clk 0:00:43]} 32. e7 {[%clk 0:00:34]}  Bxe7 {[%clk 0:00:42]} 33. Ne6 {[%clk 0:00:35]}  Rd6 {[%clk 0:00:41]} 34. Qf5 {[%clk 0:00:34]}  Ne3 {[%clk 0:00:40]} 35. Nxe7+ {[%clk 0:00:29]}  Qxe7 {[%clk 0:00:39]} 36. Qh7+ {[%clk 0:00:30]}  Kf7 {[%clk 0:00:38]} 37. Nf4 {[%clk 0:00:30]}  Ke8 {[%clk 0:00:33]} 38. Bg6+ {[%clk 0:00:13]}  Kd7 {[%clk 0:00:33]} 39. Bd3 {[%clk 0:00:14]}  g5 {[%clk 0:00:32]} 40. Bf5+ {[%clk 0:00:11]}  Nxf5 {[%clk 0:00:32]} 41. Qxf5+ {[%clk 0:00:10]}  Kd8 {[%clk 0:00:30]} 42. Nxd5 {[%clk 0:00:09]}  Qe6 {[%clk 0:00:28]} 43. Qxe6 {[%clk 0:00:07]}  Rxe6 {[%clk 0:00:29]} 44. Nxf6 {[%clk 0:00:04]}  Rxf6 {[%clk 0:00:29]} 0-1

[Event "November 21 Late 2023"]
[Site "https://www.chess.com"]
[Date "2023.11.21"]
[Round "6"]
[White "Lebedev, Artem S."]
[Black "Zarnicki, Pablo"]
[Result "1-0"]
[Board "58"]
[TimeControl "180+1"]
[WhiteFideId "34272747"]
[BlackFideId "100137"]
[WhiteElo "1952"]
[BlackElo "2468"]
[WhiteTeam "RUS"]
[BlackTeam "ARG"]
[WhiteClock "0:00:20"]
[BlackClock "0:01:18"]

1. e4 {[%clk 0:03:00]}  e5 {[%clk 0:02:58]} 2. Nf3 {[%clk 0:02:59]}  Nf6 {[%clk 0:02:58]} 3. Nxe5 {[%clk 0:02:57]}  d6 {[%clk 0:02:54]} 4. Nf3 {[%clk 0:02:57]}  Nxe4 {[%clk 0:02:54]} 5. Nc3 {[%clk 0:02:57]}  Nxc3 {[%clk 0:02:53]} 6. dxc3 {[%clk 0:02:58]}  Be7 {[%clk 0:02:54]} 7. Be3 {[%clk 0:02:57]}  O-O {[%clk 0:02:55]} 8. Qd2 {[%clk 0:02:58]}  Nd7 {[%clk 0:02:56]} 9. O-O-O {[%clk 0:02:58]}  Nf6 {[%clk 0:02:56]} 10. Bd3 {[%clk 0:02:58]}  Re8 {[%clk 0:02:56]} 11. h4 {[%clk 0:02:53]}  Bf8 {[%clk 0:02:55]} 12. Ng5 {[%clk 0:02:49]}  h6 {[%clk 0:02:52]} 13. Bd4 {[%clk 0:02:41]}  c5 {[%clk 0:02:31]} 14. Bxf6 {[%clk 0:01:32]}  Qxf6 {[%clk 0:02:31]} 15. Bc4 {[%clk 0:01:31]}  Be6 {[%clk 0:02:28]} 16. Nxe6 {[%clk 0:01:06]}  fxe6 {[%clk 0:02:24]} 17. g4 {[%clk 0:01:07]}  d5 {[%clk 0:02:24]} 18. g5 {[%clk 0:01:06]}  Qf7 {[%clk 0:02:09]} 19. Bf1 {[%clk 0:00:55]}  Bd6 {[%clk 0:02:06]} 20. Kb1 {[%clk 0:00:49]}  h5 {[%clk 0:02:07]} 21. g6 {[%clk 0:00:45]}  Qf4 {[%clk 0:02:07]} 22. Qe2 {[%clk 0:00:43]}  Qe5 {[%clk 0:02:04]} 23. Qb5 {[%clk 0:00:35]}  Rf8 {[%clk 0:01:59]} 24. Bh3 {[%clk 0:00:33]}  a6 {[%clk 0:01:50]} 25. Qd7 {[%clk 0:00:32]}  Rxf2 {[%clk 0:01:21]} 26. Bxe6+ {[%clk 0:00:25]}  Kh8 {[%clk 0:01:20]} 27. Rxd5 {[%clk 0:00:21]}  Qh2 {[%clk 0:01:18]} 28. Rxh5# {[%clk 0:00:20]} 1-0

[Event "November 21 Late 2023"]
[Site "https://www.chess.com"]
[Date "2023.11.21"]
[Round "6"]
[White "GatoRojo150"]
[Black "VitaliyChayka"]
[Result "1/2-1/2"]
[Board "61"]
[TimeControl "180+1"]
[WhiteElo "2587"]
[BlackElo "2442"]
[WhiteClock "0:01:06"]
[BlackClock "0:00:51"]

1. e4 {[%clk 0:03:00]}  d6 {[%clk 0:02:59]} 2. d4 {[%clk 0:03:00]}  Nf6 {[%clk 0:03:00]} 3. Nc3 {[%clk 0:03:01]}  e5 {[%clk 0:03:00]} 4. Nf3 {[%clk 0:03:00]}  Nbd7 {[%clk 0:03:00]} 5. g4 {[%clk 0:03:00]}  g6 {[%clk 0:02:54]} 6. g5 {[%clk 0:02:58]}  Nh5 {[%clk 0:02:54]} 7. Bh3 {[%clk 0:02:58]}  Bg7 {[%clk 0:02:44]} 8. Bg4 {[%clk 0:02:58]}  c6 {[%clk 0:02:38]} 9. dxe5 {[%clk 0:02:46]}  Nxe5 {[%clk 0:02:26]} 10. Nxe5 {[%clk 0:02:44]}  Bxe5 {[%clk 0:02:13]} 11. Bxh5 {[%clk 0:02:39]}  gxh5 {[%clk 0:02:14]} 12. Qxh5 {[%clk 0:02:39]}  Qe7 {[%clk 0:02:02]} 13. O-O {[%clk 0:02:30]}  Be6 {[%clk 0:01:54]} 14. f4 {[%clk 0:02:29]}  Bd4+ {[%clk 0:01:54]} 15. Kh1 {[%clk 0:02:27]}  Bc4 {[%clk 0:01:54]} 16. Re1 {[%clk 0:02:18]}  Bf2 {[%clk 0:01:37]} 17. Rd1 {[%clk 0:02:10]}  O-O-O {[%clk 0:01:37]} 18. Be3 {[%clk 0:02:06]}  Bxe3 {[%clk 0:01:35]} 19. Qh3+ {[%clk 0:02:06]}  Kb8 {[%clk 0:01:28]} 20. Qxe3 {[%clk 0:02:07]}  h6 {[%clk 0:01:26]} 21. Rd4 {[%clk 0:01:34]}  Be6 {[%clk 0:01:22]} 22. f5 {[%clk 0:01:34]}  Bxf5 {[%clk 0:01:21]} 23. gxh6 {[%clk 0:01:13]}  Bg6 {[%clk 0:01:12]} 24. Rad1 {[%clk 0:01:09]}  Qe5 {[%clk 0:01:01]} 25. Qg3 {[%clk 0:01:05]}  Qxg3 {[%clk 0:01:00]} 26. hxg3 {[%clk 0:01:06]}  Rxh6+ {[%clk 0:01:00]} 27. Kg2 {[%clk 0:01:07]}  Kc7 {[%clk 0:01:01]} 28. Rc4 {[%clk 0:01:06]}  Kb8 {[%clk 0:00:54]} 29. Rcd4 {[%clk 0:01:06]}  Kc7 {[%clk 0:00:51]} 30. Rc4 {[%clk 0:01:06]}  Kb8 {[%clk 0:00:51]} 31. Rcd4 {[%clk 0:01:06]} 1/2-1/2

[Event "November 21 Late 2023"]
[Site "https://www.chess.com"]
[Date "2023.11.21"]
[Round "6"]
[White "Erzhanov, Arman"]
[Black "gpsji27"]
[Result "1-0"]
[Board "66"]
[TimeControl "180+1"]
[WhiteFideId "4138821"]
[WhiteElo "2171"]
[BlackElo "2341"]
[WhiteTeam "KAZ"]
[WhiteClock "0:00:19"]
[BlackClock "0:00:00"]

1. e4 {[%clk 0:03:00]}  e5 {[%clk 0:02:59]} 2. Nf3 {[%clk 0:02:59]}  Nc6 {[%clk 0:02:59]} 3. Be2 {[%clk 0:03:00]}  Bc5 {[%clk 0:02:58]} 4. O-O {[%clk 0:02:59]}  Nf6 {[%clk 0:02:58]} 5. d3 {[%clk 0:03:00]}  d6 {[%clk 0:02:58]} 6. Nbd2 {[%clk 0:03:00]}  O-O {[%clk 0:02:58]} 7. c3 {[%clk 0:03:00]}  Bb6 {[%clk 0:02:57]} 8. b4 {[%clk 0:03:00]}  Ne7 {[%clk 0:02:57]} 9. h3 {[%clk 0:02:58]}  Ng6 {[%clk 0:02:57]} 10. Re1 {[%clk 0:02:58]}  Be6 {[%clk 0:02:58]} 11. Bf1 {[%clk 0:02:54]}  Qd7 {[%clk 0:02:53]} 12. d4 {[%clk 0:02:53]}  exd4 {[%clk 0:02:46]} 13. cxd4 {[%clk 0:02:54]}  d5 {[%clk 0:02:46]} 14. e5 {[%clk 0:02:54]}  Ne4 {[%clk 0:02:46]} 15. Bd3 {[%clk 0:02:36]}  Bxh3 {[%clk 0:01:56]} 16. gxh3 {[%clk 0:02:27]}  Qxh3 {[%clk 0:01:53]} 17. Nxe4 {[%clk 0:02:20]}  dxe4 {[%clk 0:01:46]} 18. Rxe4 {[%clk 0:02:20]}  f5 {[%clk 0:01:39]} 19. Bf1 {[%clk 0:02:02]}  Qh5 {[%clk 0:01:34]} 20. Re1 {[%clk 0:01:55]}  Qg4+ {[%clk 0:01:31]} 21. Bg2 {[%clk 0:01:51]}  Rad8 {[%clk 0:01:29]} 22. Be3 {[%clk 0:01:46]}  f4 {[%clk 0:01:18]} 23. Bc1 {[%clk 0:01:44]}  Bxd4 {[%clk 0:01:05]} 24. Nxd4 {[%clk 0:01:35]}  f3 {[%clk 0:00:36]} 25. Qb3+ {[%clk 0:01:35]}  Kh8 {[%clk 0:00:30]} 26. Nxf3 {[%clk 0:01:35]}  Rf5 {[%clk 0:00:17]} 27. Qe6 {[%clk 0:01:16]}  Rdf8 {[%clk 0:00:13]} 28. a4 {[%clk 0:00:51]}  Qh5 {[%clk 0:00:11]} 29. Ra3 {[%clk 0:00:46]}  h6 {[%clk 0:00:09]} 30. Qd5 {[%clk 0:00:40]}  Nh4 {[%clk 0:00:04]} 31. Nxh4 {[%clk 0:00:38]}  Qxh4 {[%clk 0:00:05]} 32. Rg3 {[%clk 0:00:19]}  Rxf2 {[%clk 0:00:02]} 33. Qd3 {[%clk 0:00:20]}  Qxb4 {[%clk 0:00:02]} 34. Rd1 {[%clk 0:00:19]}  Qb6 {[%clk 0:00:00]} 35. Be3 {[%clk 0:00:19]} 1-0

[Event "November 21 Late 2023"]
[Site "https://www.chess.com"]
[Date "2023.11.21"]
[Round "6"]
[White "Vafin, Ayrat"]
[Black "ilya2700"]
[Result "1-0"]
[Board "68"]
[TimeControl "180+1"]
[WhiteFideId "4146530"]
[WhiteElo "2317"]
[BlackElo "2248"]
[WhiteTeam "RUS"]
[WhiteClock "0:00:40"]
[BlackClock "0:00:00"]

1. Nf3 {[%clk 0:03:00]}  Nf6 {[%clk 0:02:59]} 2. g3 {[%clk 0:03:01]}  d5 {[%clk 0:02:59]} 3. Bg2 {[%clk 0:03:01]}  e6 {[%clk 0:03:00]} 4. c4 {[%clk 0:03:00]}  Be7 {[%clk 0:03:00]} 5. O-O {[%clk 0:03:00]}  O-O {[%clk 0:02:59]} 6. b3 {[%clk 0:03:00]}  Nbd7 {[%clk 0:02:59]} 7. Bb2 {[%clk 0:03:00]}  b6 {[%clk 0:02:58]} 8. e3 {[%clk 0:03:01]}  Bb7 {[%clk 0:02:58]} 9. Qe2 {[%clk 0:03:02]}  c5 {[%clk 0:02:58]} 10. Nc3 {[%clk 0:03:02]}  Rc8 {[%clk 0:02:58]} 11. Rfd1 {[%clk 0:03:02]}  Re8 {[%clk 0:02:56]} 12. cxd5 {[%clk 0:03:00]}  exd5 {[%clk 0:02:56]} 13. d4 {[%clk 0:03:00]}  cxd4 {[%clk 0:02:52]} 14. Nxd4 {[%clk 0:02:54]}  Bb4 {[%clk 0:02:44]} 15. Rac1 {[%clk 0:02:43]}  Nc5 {[%clk 0:02:25]} 16. Ncb5 {[%clk 0:02:11]}  a6 {[%clk 0:01:48]} 17. Na7 {[%clk 0:02:04]}  Rc7 {[%clk 0:01:30]} 18. a3 {[%clk 0:02:04]}  Ba5 {[%clk 0:01:16]} 19. b4 {[%clk 0:02:02]}  Ba8 {[%clk 0:01:16]} 20. bxa5 {[%clk 0:01:18]}  Rxa7 {[%clk 0:01:16]} 21. axb6 {[%clk 0:01:18]}  Qxb6 {[%clk 0:01:17]} 22. Nf5 {[%clk 0:01:18]}  Nce4 {[%clk 0:01:12]} 23. Bd4 {[%clk 0:01:11]}  Qe6 {[%clk 0:00:52]} 24. Bxa7 {[%clk 0:01:03]}  Qxf5 {[%clk 0:00:52]} 25. Bd4 {[%clk 0:01:04]}  h6 {[%clk 0:00:31]} 26. Rc7 {[%clk 0:01:02]}  Nd6 {[%clk 0:00:28]} 27. Bxf6 {[%clk 0:00:57]}  Qxf6 {[%clk 0:00:22]} 28. Qxa6 {[%clk 0:00:56]}  Ne4 {[%clk 0:00:15]} 29. Qxf6 {[%clk 0:00:55]}  Nxf6 {[%clk 0:00:15]} 30. Rdc1 {[%clk 0:00:53]}  Kh7 {[%clk 0:00:12]} 31. Rc8 {[%clk 0:00:52]}  Bb7 {[%clk 0:00:12]} 32. Rxe8 {[%clk 0:00:51]}  Nxe8 {[%clk 0:00:13]} 33. a4 {[%clk 0:00:47]}  Nd6 {[%clk 0:00:11]} 34. Rc7 {[%clk 0:00:44]}  Ba6 {[%clk 0:00:00]} 35. Rc6 {[%clk 0:00:40]} 1-0

[Event "November 21 Late 2023"]
[Site "https://www.chess.com"]
[Date "2023.11.21"]
[Round "6"]
[White "Saim, Mohamed Ilias"]
[Black "Pinto, Daniel"]
[Result "0-1"]
[Board "69"]
[TimeControl "180+1"]
[WhiteFideId "7900465"]
[BlackFideId "3303144"]
[WhiteElo "2063"]
[BlackElo "2149"]
[WhiteTeam "ALG"]
[BlackTeam "BOL"]
[WhiteClock "0:00:00"]
[BlackClock "0:00:21"]

1. d4 {[%clk 0:03:00]}  Nf6 {[%clk 0:02:57]} 2. Bg5 {[%clk 0:03:01]}  d5 {[%clk 0:02:54]} 3. Bxf6 {[%clk 0:02:59]}  exf6 {[%clk 0:02:53]} 4. e3 {[%clk 0:02:59]}  c5 {[%clk 0:02:52]} 5. c3 {[%clk 0:02:40]}  Nc6 {[%clk 0:02:52]} 6. Nf3 {[%clk 0:02:38]}  Qb6 {[%clk 0:02:48]} 7. Qc1 {[%clk 0:02:21]}  Bf5 {[%clk 0:02:47]} 8. Nbd2 {[%clk 0:02:18]}  cxd4 {[%clk 0:02:47]} 9. exd4 {[%clk 0:02:12]}  O-O-O {[%clk 0:02:45]} 10. Be2 {[%clk 0:02:04]}  Re8 {[%clk 0:02:45]} 11. Nf1 {[%clk 0:02:03]}  Bd3 {[%clk 0:02:41]} 12. Ne3 {[%clk 0:02:01]}  Bxe2 {[%clk 0:02:40]} 13. Kxe2 {[%clk 0:02:00]}  Bd6 {[%clk 0:02:39]} 14. Rd1 {[%clk 0:01:54]}  Bf4 {[%clk 0:02:38]} 15. Kf1 {[%clk 0:01:50]}  Bxe3 {[%clk 0:02:36]} 16. fxe3 {[%clk 0:01:50]}  Re7 {[%clk 0:02:33]} 17. c4 {[%clk 0:01:26]}  Qa6 {[%clk 0:02:33]} 18. b3 {[%clk 0:01:25]}  Rhe8 {[%clk 0:02:33]} 19. Re1 {[%clk 0:01:19]}  dxc4 {[%clk 0:02:25]} 20. bxc4 {[%clk 0:01:16]}  Na5 {[%clk 0:02:26]} 21. Nd2 {[%clk 0:01:04]}  Rxe3 {[%clk 0:02:25]} 22. Rxe3 {[%clk 0:00:52]}  Rxe3 {[%clk 0:02:26]} 23. Kg1 {[%clk 0:00:40]}  Qd6 {[%clk 0:02:05]} 24. d5 {[%clk 0:00:22]}  Qc5 {[%clk 0:02:02]} 25. Kh1 {[%clk 0:00:20]}  Re2 {[%clk 0:01:57]} 26. Nb3 {[%clk 0:00:19]}  Qf2 {[%clk 0:01:51]} 27. Qg1 {[%clk 0:00:19]}  Qxg1+ {[%clk 0:01:45]} 28. Kxg1 {[%clk 0:00:20]}  Nxc4 {[%clk 0:01:35]} 29. Rc1 {[%clk 0:00:20]}  b5 {[%clk 0:01:35]} 30. Na5 {[%clk 0:00:19]}  Re4 {[%clk 0:01:10]} 31. a4 {[%clk 0:00:18]}  Kd7 {[%clk 0:01:07]} 32. Nb7 {[%clk 0:00:15]}  Rd4 {[%clk 0:00:30]} 33. axb5 {[%clk 0:00:14]}  Nb2 {[%clk 0:00:26]} 34. d6 {[%clk 0:00:10]}  Rd1+ {[%clk 0:00:23]} 35. Rxd1 {[%clk 0:00:10]}  Nxd1 {[%clk 0:00:24]} 36. Kf1 {[%clk 0:00:09]}  Nc3 {[%clk 0:00:23]} 37. Kf2 {[%clk 0:00:03]}  Nxb5 {[%clk 0:00:22]} 38. Nc5+ {[%clk 0:00:03]}  Kxd6 {[%clk 0:00:22]} 39. Nd3 {[%clk 0:00:03]}  a5 {[%clk 0:00:22]} 40. Nb2 {[%clk 0:00:02]}  Kd5 {[%clk 0:00:22]} 41. Ke3 {[%clk 0:00:02]}  Nd6 {[%clk 0:00:21]} 42. g3 {[%clk 0:00:00]}  Nc4+ {[%clk 0:00:21]} 0-1

[Event "November 21 Late 2023"]
[Site "https://www.chess.com"]
[Date "2023.11.21"]
[Round "6"]
[White "Yushko, Olga"]
[Black "Van Dael, Siem"]
[Result "0-1"]
[Board "70"]
[TimeControl "180+1"]
[WhiteFideId "14114500"]
[BlackFideId "1049771"]
[WhiteElo "2028"]
[BlackElo "2252"]
[WhiteTeam "UKR"]
[BlackTeam "NED"]
[WhiteClock "0:01:22"]
[BlackClock "0:00:49"]

1. d4 {[%clk 0:02:59]}  Nf6 {[%clk 0:02:59]} 2. c4 {[%clk 0:02:59]}  g6 {[%clk 0:03:00]} 3. Nf3 {[%clk 0:02:59]}  Bg7 {[%clk 0:03:00]} 4. Nc3 {[%clk 0:02:59]}  d6 {[%clk 0:03:00]} 5. Bg5 {[%clk 0:02:59]}  O-O {[%clk 0:03:00]} 6. e3 {[%clk 0:03:00]}  c5 {[%clk 0:03:00]} 7. Be2 {[%clk 0:02:59]}  b6 {[%clk 0:02:57]} 8. O-O {[%clk 0:02:59]}  Bb7 {[%clk 0:02:58]} 9. Qc2 {[%clk 0:02:59]}  h6 {[%clk 0:02:54]} 10. Bh4 {[%clk 0:02:59]}  Nbd7 {[%clk 0:02:49]} 11. Rfd1 {[%clk 0:02:57]}  Rc8 {[%clk 0:02:48]} 12. Rac1 {[%clk 0:02:56]}  a6 {[%clk 0:02:47]} 13. a3 {[%clk 0:02:49]}  cxd4 {[%clk 0:02:30]} 14. exd4 {[%clk 0:02:48]}  d5 {[%clk 0:02:27]} 15. cxd5 {[%clk 0:02:41]}  Nxd5 {[%clk 0:02:26]} 16. Qb3 {[%clk 0:02:37]}  Nf4 {[%clk 0:02:22]} 17. Bf1 {[%clk 0:02:32]}  b5 {[%clk 0:02:12]} 18. Ne5 {[%clk 0:02:25]}  g5 {[%clk 0:01:33]} 19. Bg3 {[%clk 0:02:23]}  Ne6 {[%clk 0:01:33]} 20. Nxd7 {[%clk 0:02:09]}  Qxd7 {[%clk 0:01:32]} 21. Be5 {[%clk 0:02:01]}  Bxe5 {[%clk 0:01:20]} 22. dxe5 {[%clk 0:02:02]}  Qc6 {[%clk 0:01:10]} 23. Nd5 {[%clk 0:01:50]}  Qxd5 {[%clk 0:01:06]} 24. Rxd5 {[%clk 0:01:47]}  Bxd5 {[%clk 0:01:06]} 25. Qxd5 {[%clk 0:01:46]}  Rxc1 {[%clk 0:01:06]} 26. g3 {[%clk 0:01:44]}  Rd8 {[%clk 0:01:05]} 27. Qb7 {[%clk 0:01:36]}  Rdd1 {[%clk 0:01:05]} 28. Kg2 {[%clk 0:01:37]}  Rxf1 {[%clk 0:01:03]} 29. Qxa6 {[%clk 0:01:36]}  g4 {[%clk 0:01:03]} 30. f3 {[%clk 0:01:31]}  gxf3+ {[%clk 0:00:51]} 31. Kh3 {[%clk 0:01:31]}  f2 {[%clk 0:00:49]} 32. Qa8+ {[%clk 0:01:31]}  Kg7 {[%clk 0:00:49]} 33. Qf3 {[%clk 0:01:22]}  Ng5+ {[%clk 0:00:49]} 0-1

[Event "November 21 Late 2023"]
[Site "https://www.chess.com"]
[Date "2023.11.21"]
[Round "6"]
[White "Hansen, Sune Berg"]
[Black "Przybylski, Wojciech"]
[Result "0-1"]
[Board "73"]
[TimeControl "180+1"]
[WhiteFideId "1400266"]
[BlackFideId "1117599"]
[WhiteElo "2704"]
[BlackElo "2203"]
[WhiteTeam "DEN"]
[BlackTeam "POL"]
[WhiteClock "0:02:24"]
[BlackClock "0:01:29"]

1. e4 {[%clk 0:03:00]}  e5 {[%clk 0:02:58]} 2. Nf3 {[%clk 0:03:00]}  Nc6 {[%clk 0:02:57]} 3. Bc4 {[%clk 0:03:01]}  Nf6 {[%clk 0:02:57]} 4. d3 {[%clk 0:03:01]}  Bc5 {[%clk 0:02:54]} 5. O-O {[%clk 0:03:01]}  h6 {[%clk 0:02:54]} 6. c3 {[%clk 0:03:00]}  O-O {[%clk 0:02:53]} 7. Re1 {[%clk 0:02:58]}  Re8 {[%clk 0:02:52]} 8. Bb3 {[%clk 0:02:54]}  d6 {[%clk 0:02:47]} 9. h3 {[%clk 0:02:50]}  a5 {[%clk 0:02:46]} 10. Nbd2 {[%clk 0:02:48]}  Ba7 {[%clk 0:02:45]} 11. Nf1 {[%clk 0:02:46]}  Ne7 {[%clk 0:02:44]} 12. Ng3 {[%clk 0:02:44]}  c6 {[%clk 0:02:43]} 13. d4 {[%clk 0:02:44]}  Qc7 {[%clk 0:02:42]} 14. Be3 {[%clk 0:02:42]}  b5 {[%clk 0:02:41]} 15. Bc2 {[%clk 0:02:41]}  a4 {[%clk 0:02:40]} 16. Qd2 {[%clk 0:02:40]}  Bb7 {[%clk 0:02:38]} 17. Bxh6 {[%clk 0:02:37]}  Ng6 {[%clk 0:02:24]} 18. Nf5 {[%clk 0:02:36]}  Nh5 {[%clk 0:02:16]} 19. Qg5 {[%clk 0:02:35]}  gxh6 {[%clk 0:01:38]} 20. Qxh5 {[%clk 0:02:30]}  Qd8 {[%clk 0:01:31]} 21. Qh4 {[%clk 0:02:24]}  Nxh4 {[%clk 0:01:29]} 0-1